[Event "Early-Titled-Tuesday-Blitz-May-14-2024"]
[Site "Chess.com"]
[Date "2024.05.14"]
[Round "1"]
[White "DenisQ"]
[Black "Resourchess"]
[Result "1-0"]
[WhiteElo "2728"]
[BlackElo "2394"]
[TimeControl "180+1"]
[EndTime "8:06:37 PDT"]
[Termination "DenisQ won by resignation"]

1. Nf3 {[%clk 0:02:57.6]} 1... d6 {[%clk 0:02:59.3]} 2. g3 {[%clk 0:02:57.1]}
2... e5 {[%clk 0:02:50.3]} 3. Bg2 {[%clk 0:02:56.6]} 3... g6 {[%clk 0:02:47.6]}
4. O-O {[%clk 0:02:55.9]} 4... Bg7 {[%clk 0:02:47.3]} 5. c4 {[%clk 0:02:56.5]}
5... f5 {[%clk 0:02:45.9]} 6. Nc3 {[%clk 0:02:56.9]} 6... Nf6 {[%clk 0:02:44.1]}
7. d3 {[%clk 0:02:56.7]} 7... O-O {[%clk 0:02:42.8]} 8. Rb1 {[%clk 0:02:56.4]}
8... c6 {[%clk 0:02:39.8]} 9. b4 {[%clk 0:02:55.2]} 9... h6 {[%clk 0:02:38]} 10.
b5 {[%clk 0:02:54.4]} 10... Be6 {[%clk 0:02:36.8]} 11. bxc6 {[%clk 0:02:51.5]}
11... bxc6 {[%clk 0:02:36.2]} 12. Ba3 {[%clk 0:02:47.4]} 12... Qc7 {[%clk
0:02:30.6]} 13. Qb3 {[%clk 0:02:36.7]} 13... Nbd7 {[%clk 0:02:22.5]} 14. Qb7
{[%clk 0:02:36.1]} 14... Qxb7 {[%clk 0:02:18.7]} 15. Rxb7 {[%clk 0:02:37]} 15...
Ne8 {[%clk 0:02:09.6]} 16. Nh4 {[%clk 0:02:24.5]} 16... g5 {[%clk 0:01:31.4]}
17. Bxc6 {[%clk 0:02:19.9]} 17... gxh4 {[%clk 0:01:28.3]} 18. Bxd7 {[%clk
0:02:08.9]} 18... Bxd7 {[%clk 0:01:27.9]} 19. Rxd7 {[%clk 0:02:08.7]} 19... hxg3
{[%clk 0:01:26.8]} 20. hxg3 {[%clk 0:02:09.1]} 20... Rf7 {[%clk 0:01:15.8]} 21.
Rxf7 {[%clk 0:02:04.9]} 21... Kxf7 {[%clk 0:01:16.7]} 22. Rb1 {[%clk 0:02:04.4]}
22... Rc8 {[%clk 0:00:39.1]} 23. Rb7+ {[%clk 0:01:59.6]} 23... Rc7 {[%clk
0:00:39.1]} 24. Rxc7+ {[%clk 0:01:58.3]} 24... Nxc7 {[%clk 0:00:39.4]} 25. Bxd6
{[%clk 0:01:58.4]} 25... Ne6 {[%clk 0:00:34]} 26. Nb5 {[%clk 0:01:43.6]} 26...
a6 {[%clk 0:00:33]} 27. Nc7 {[%clk 0:01:36.5]} 27... a5 {[%clk 0:00:29.4]} 28.
Nxe6 {[%clk 0:01:34.3]} 28... Kxe6 {[%clk 0:00:29.5]} 29. Bc5 {[%clk 0:01:30.1]}
29... e4 {[%clk 0:00:26]} 30. d4 {[%clk 0:01:26.7]} 30... h5 {[%clk 0:00:25.5]}
31. Kg2 {[%clk 0:01:25.3]} 31... Bh6 {[%clk 0:00:25.6]} 32. d5+ {[%clk
0:01:23.7]} 32... Kd7 {[%clk 0:00:25.5]} 33. f3 {[%clk 0:01:22.7]} 33... Bd2
{[%clk 0:00:24]} 34. Kh3 {[%clk 0:01:20.3]} 34... exf3 {[%clk 0:00:20.7]} 35.
exf3 {[%clk 0:01:19.8]} 35... Bg5 {[%clk 0:00:19]} 36. Bb6 {[%clk 0:01:19.2]}
36... a4 {[%clk 0:00:18.8]} 37. c5 {[%clk 0:01:19.2]} 37... Bf6 {[%clk
0:00:16.2]} 38. Ba5 {[%clk 0:01:14.3]} 38... Bd4 {[%clk 0:00:15.1]} 39. c6+
{[%clk 0:01:12.5]} 39... Kd6 {[%clk 0:00:14.8]} 40. Kh4 {[%clk 0:01:12.3]} 40...
Bf2 {[%clk 0:00:12.7]} 41. Kxh5 {[%clk 0:01:11.2]} 41... Bxg3 {[%clk 0:00:12.9]}
42. Kg5 {[%clk 0:01:11.3]} 42... f4 {[%clk 0:00:11.9]} 43. Kf5 {[%clk
0:01:11.3]} 43... Bh2 {[%clk 0:00:12.1]} 44. Bc3 {[%clk 0:01:10]} 44... Bg3
{[%clk 0:00:11.5]} 45. Be5+ {[%clk 0:01:09.5]} 1-0

[Event "Early-Titled-Tuesday-Blitz-May-14-2024"]
[Site "Chess.com"]
[Date "2024.05.14"]
[Round "1"]
[White "manmanlai1"]
[Black "Sasha_Solovev_777"]
[Result "1-0"]
[WhiteElo "2583"]
[BlackElo "2188"]
[TimeControl "180+1"]
[EndTime "8:06:38 PDT"]
[Termination "manmanlai1 won on time"]

1. e4 {[%clk 0:02:59.7]} 1... c5 {[%clk 0:02:48.6]} 2. Nf3 {[%clk 0:02:59.3]}
2... d6 {[%clk 0:02:47.9]} 3. d4 {[%clk 0:02:59.4]} 3... cxd4 {[%clk 0:02:48.2]}
4. Nxd4 {[%clk 0:03:00.3]} 4... Nf6 {[%clk 0:02:48.5]} 5. Nc3 {[%clk 0:03:00.1]}
5... a6 {[%clk 0:02:48.2]} 6. Bg5 {[%clk 0:02:58]} 6... Nbd7 {[%clk 0:02:47.4]}
7. Qd2 {[%clk 0:02:54.6]} 7... Qc7 {[%clk 0:02:47]} 8. O-O-O {[%clk 0:02:53]}
8... e6 {[%clk 0:02:44.3]} 9. f4 {[%clk 0:02:52]} 9... Be7 {[%clk 0:02:35.1]}
10. Be2 {[%clk 0:02:22.8]} 10... b5 {[%clk 0:02:26]} 11. Bf3 {[%clk 0:02:06.9]}
11... Bb7 {[%clk 0:02:25.2]} 12. Rhe1 {[%clk 0:02:04.6]} 12... O-O {[%clk
0:02:15.4]} 13. e5 {[%clk 0:01:53.6]} 13... dxe5 {[%clk 0:01:07.1]} 14. fxe5
{[%clk 0:01:46.7]} 14... Nxe5 {[%clk 0:01:06.2]} 15. Bxb7 {[%clk 0:01:45.5]}
15... Nc4 {[%clk 0:01:05.3]} 16. Qe2 {[%clk 0:01:19.5]} 16... Qxb7 {[%clk
0:00:56.7]} 17. Nf5 {[%clk 0:01:19.9]} 17... exf5 {[%clk 0:00:16.3]} 18. Qxe7
{[%clk 0:01:20.8]} 18... Qxe7 {[%clk 0:00:11.9]} 19. Rxe7 {[%clk 0:01:21.7]}
19... Ng4 {[%clk 0:00:12]} 20. b3 {[%clk 0:01:09.5]} 20... Na5 {[%clk
0:00:06.1]} 21. h3 {[%clk 0:01:08]} 21... Nf2 {[%clk 0:00:05.6]} 22. Rf1 {[%clk
0:00:59]} 22... Ne4 {[%clk 0:00:05.8]} 23. Nxe4 {[%clk 0:00:58.5]} 23... fxe4
{[%clk 0:00:06.7]} 24. Rxe4 {[%clk 0:00:58.6]} 24... Rfe8 {[%clk 0:00:06.3]} 25.
Rfe1 {[%clk 0:00:55.6]} 25... Kf8 {[%clk 0:00:05.6]} 26. Be7+ {[%clk 0:00:54.6]}
26... Kg8 {[%clk 0:00:04.3]} 27. Bc5 {[%clk 0:00:48.7]} 27... Rxe4 {[%clk
0:00:03.7]} 28. Rxe4 {[%clk 0:00:49.6]} 28... Nc6 {[%clk 0:00:03.7]} 29. a4
{[%clk 0:00:48.4]} 29... bxa4 {[%clk 0:00:03.1]} 30. Rxa4 {[%clk 0:00:47.7]}
30... h5 {[%clk 0:00:02.5]} 31. b4 {[%clk 0:00:43.6]} 1-0

[Event "Early-Titled-Tuesday-Blitz-May-14-2024"]
[Site "Chess.com"]
[Date "2024.05.14"]
[Round "1"]
[White "dretch"]
[Black "maximnovik"]
[Result "1-0"]
[WhiteElo "2905"]
[BlackElo "2517"]
[TimeControl "180+1"]
[EndTime "8:06:39 PDT"]
[Termination "dretch won by resignation"]

1. d4 {[%clk 0:01:09.3]} 1... Nf6 {[%clk 0:02:59]} 2. c4 {[%clk 0:01:08.6]} 2...
g6 {[%clk 0:02:58.9]} 3. Nc3 {[%clk 0:01:07.8]} 3... d5 {[%clk 0:02:59.3]} 4. e3
{[%clk 0:01:05.3]} 4... Bg7 {[%clk 0:02:59.2]} 5. Qb3 {[%clk 0:01:05.9]} 5...
dxc4 {[%clk 0:02:56.6]} 6. Bxc4 {[%clk 0:01:06.8]} 6... O-O {[%clk 0:02:56.9]}
7. Nf3 {[%clk 0:01:07.4]} 7... c5 {[%clk 0:02:57.4]} 8. O-O {[%clk 0:01:04.2]}
8... Nc6 {[%clk 0:02:52]} 9. Ne5 {[%clk 0:01:04.1]} 9... e6 {[%clk 0:02:25.7]}
10. Nxc6 {[%clk 0:01:03.8]} 10... bxc6 {[%clk 0:02:26]} 11. dxc5 {[%clk
0:01:03.1]} 11... Nd7 {[%clk 0:02:19.1]} 12. Rd1 {[%clk 0:00:51.9]} 12... Qe7
{[%clk 0:02:15.9]} 13. Bd2 {[%clk 0:00:42.8]} 13... Qxc5 {[%clk 0:02:07.7]} 14.
Na4 {[%clk 0:00:28.3]} 14... Qh5 {[%clk 0:01:52.7]} 15. Bc3 {[%clk 0:00:22.6]}
15... Rb8 {[%clk 0:01:49]} 16. Qc2 {[%clk 0:00:20.6]} 16... Nb6 {[%clk
0:01:23.5]} 17. Be2 {[%clk 0:00:20]} 17... Nxa4 {[%clk 0:01:21.6]} 18. Bxh5
{[%clk 0:00:19]} 18... Nxc3 {[%clk 0:01:14.7]} 19. bxc3 {[%clk 0:00:18.9]} 19...
gxh5 {[%clk 0:01:14.7]} 20. Rab1 {[%clk 0:00:18.7]} 20... Ba6 {[%clk 0:01:13]}
21. Rxb8 {[%clk 0:00:18.1]} 21... Rxb8 {[%clk 0:01:12.7]} 22. h3 {[%clk
0:00:18.3]} 22... Bc4 {[%clk 0:01:10.6]} 23. Qa4 {[%clk 0:00:18.2]} 23... Bb5
{[%clk 0:01:07.1]} 24. Qxa7 {[%clk 0:00:18.2]} 24... Rf8 {[%clk 0:01:07.3]} 25.
a4 {[%clk 0:00:18.4]} 25... Bc4 {[%clk 0:01:06.8]} 26. a5 {[%clk 0:00:19]} 26...
Bxc3 {[%clk 0:01:06.4]} 27. Qc5 {[%clk 0:00:18.6]} 27... Bb3 {[%clk 0:01:05.9]}
28. Rb1 {[%clk 0:00:17.2]} 28... Ba2 {[%clk 0:01:04.8]} 29. Qxc3 {[%clk
0:00:17.5]} 29... Bxb1 {[%clk 0:01:04.6]} 30. a6 {[%clk 0:00:17.8]} 30... c5
{[%clk 0:01:01.1]} 31. f3 {[%clk 0:00:17.3]} 31... Ba2 {[%clk 0:00:53.7]} 32. e4
{[%clk 0:00:16.5]} 32... c4 {[%clk 0:00:52.7]} 33. a7 {[%clk 0:00:17]} 33... Ra8
{[%clk 0:00:48.1]} 34. Qb4 {[%clk 0:00:17]} 34... c3 {[%clk 0:00:48.3]} 35. Qb8+
{[%clk 0:00:16.3]} 35... Kg7 {[%clk 0:00:48.6]} 36. Qxa8 {[%clk 0:00:16.3]}
36... Bc4 {[%clk 0:00:48.5]} 37. Qc6 {[%clk 0:00:16.3]} 37... c2 {[%clk
0:00:47.4]} 38. Qxc4 {[%clk 0:00:16.4]} 38... h4 {[%clk 0:00:46.8]} 39. Qxc2
{[%clk 0:00:16.2]} 1-0

[Event "Early-Titled-Tuesday-Blitz-May-14-2024"]
[Site "Chess.com"]
[Date "2024.05.14"]
[Round "1"]
[White "AniJak"]
[Black "TregubovP"]
[Result "0-1"]
[WhiteElo "2389"]
[BlackElo "2709"]
[TimeControl "180+1"]
[EndTime "8:06:39 PDT"]
[Termination "TregubovP won by checkmate"]

1. e4 {[%clk 0:03:00.9]} 1... c5 {[%clk 0:02:59]} 2. Nc3 {[%clk 0:03:00.3]} 2...
e6 {[%clk 0:02:58.7]} 3. g3 {[%clk 0:03:00.2]} 3... d5 {[%clk 0:02:59.1]} 4.
exd5 {[%clk 0:03:00.5]} 4... exd5 {[%clk 0:02:59.6]} 5. d4 {[%clk 0:03:00.8]}
5... cxd4 {[%clk 0:02:56.4]} 6. Qxd4 {[%clk 0:03:00.2]} 6... Nf6 {[%clk
0:02:57]} 7. Bg5 {[%clk 0:02:59.5]} 7... Be7 {[%clk 0:02:54.4]} 8. O-O-O {[%clk
0:02:57.3]} 8... Nc6 {[%clk 0:02:55]} 9. Qd2 {[%clk 0:02:50.2]} 9... d4 {[%clk
0:02:51.9]} 10. Nb5 {[%clk 0:02:37.6]} 10... O-O {[%clk 0:01:58.9]} 11. Nxd4
{[%clk 0:02:32.4]} 11... Nxd4 {[%clk 0:01:58.4]} 12. Qxd4 {[%clk 0:02:31.4]}
12... Qa5 {[%clk 0:01:58.9]} 13. Bxf6 {[%clk 0:01:55.1]} 13... Bxf6 {[%clk
0:01:55.9]} 14. Qd5 {[%clk 0:01:54.9]} 14... Qb6 {[%clk 0:01:40.8]} 15. Qb3
{[%clk 0:01:53.4]} 15... Qxf2 {[%clk 0:01:36.8]} 16. Bc4 {[%clk 0:01:52.7]}
16... b5 {[%clk 0:01:19.7]} 17. Bd5 {[%clk 0:01:47.5]} 17... Bg4 {[%clk
0:01:06.9]} 18. Nf3 {[%clk 0:01:41.5]} 18... Rad8 {[%clk 0:00:52.5]} 19. Rhf1
{[%clk 0:01:36.6]} 19... Qb6 {[%clk 0:00:51.1]} 20. h3 {[%clk 0:00:48.8]} 20...
Bxh3 {[%clk 0:00:45.8]} 21. Rh1 {[%clk 0:00:40]} 21... Bf5 {[%clk 0:00:43.2]}
22. Rhe1 {[%clk 0:00:23.5]} 22... a5 {[%clk 0:00:33]} 23. Kb1 {[%clk 0:00:17.3]}
23... a4 {[%clk 0:00:32.6]} 24. Qb4 {[%clk 0:00:09.4]} 24... Qf2 {[%clk
0:00:28.5]} 25. Qf4 {[%clk 0:00:04.8]} 25... Bxc2+ {[%clk 0:00:25.9]} 26. Ka1
{[%clk 0:00:04]} 26... Bxd1 {[%clk 0:00:25.1]} 27. Rxd1 {[%clk 0:00:04.9]} 27...
Qxb2# {[%clk 0:00:24.9]} 0-1

[Event "Early-Titled-Tuesday-Blitz-May-14-2024"]
[Site "Chess.com"]
[Date "2024.05.14"]
[Round "1"]
[White "Doublekk14"]
[Black "littlepinkyboy"]
[Result "0-1"]
[WhiteElo "2356"]
[BlackElo "2672"]
[TimeControl "180+1"]
[EndTime "8:06:39 PDT"]
[Termination "littlepinkyboy won on time"]

1. c4 {[%clk 0:02:58]} 1... e5 {[%clk 0:02:59.7]} 2. Nc3 {[%clk 0:02:32.9]} 2...
Nf6 {[%clk 0:02:59.5]} 3. e3 {[%clk 0:02:32.5]} 3... d5 {[%clk 0:02:59.5]} 4.
cxd5 {[%clk 0:02:32.4]} 4... Nxd5 {[%clk 0:03:00.4]} 5. Nf3 {[%clk 0:02:31.9]}
5... Nxc3 {[%clk 0:02:50.6]} 6. bxc3 {[%clk 0:02:31.5]} 6... Bd6 {[%clk
0:02:48.2]} 7. e4 {[%clk 0:02:26.6]} 7... O-O {[%clk 0:02:47.2]} 8. h3 {[%clk
0:02:24.3]} 8... c5 {[%clk 0:02:38.4]} 9. Bd3 {[%clk 0:02:23]} 9... Be6 {[%clk
0:02:31.9]} 10. Bc2 {[%clk 0:02:22]} 10... c4 {[%clk 0:02:31.7]} 11. Qe2 {[%clk
0:02:17.8]} 11... Nc6 {[%clk 0:02:28.4]} 12. d4 {[%clk 0:02:10.9]} 12... exd4
{[%clk 0:02:21.3]} 13. cxd4 {[%clk 0:02:09.1]} 13... Bb4+ {[%clk 0:02:20.5]} 14.
Bd2 {[%clk 0:02:03.2]} 14... Nxd4 {[%clk 0:02:20.9]} 15. Nxd4 {[%clk 0:02:00.9]}
15... Qxd4 {[%clk 0:02:21.8]} 16. Rd1 {[%clk 0:01:56.4]} 16... Bxd2+ {[%clk
0:02:21.3]} 17. Rxd2 {[%clk 0:01:53.2]} 17... Qa1+ {[%clk 0:02:14.9]} 18. Rd1
{[%clk 0:01:52.2]} 18... Qxa2 {[%clk 0:02:07.2]} 19. O-O {[%clk 0:01:52.5]}
19... Rfd8 {[%clk 0:02:04.6]} 20. e5 {[%clk 0:01:52.4]} 20... Qa6 {[%clk
0:02:02.3]} 21. f4 {[%clk 0:01:43.9]} 21... Qb6+ {[%clk 0:01:55.4]} 22. Kh1
{[%clk 0:01:42.7]} 22... Rxd1 {[%clk 0:01:47.6]} 23. Rxd1 {[%clk 0:01:40.3]}
23... Rd8 {[%clk 0:01:47.1]} 24. Rxd8+ {[%clk 0:01:16.8]} 24... Qxd8 {[%clk
0:01:46.3]} 25. f5 {[%clk 0:01:14.8]} 25... Bd5 {[%clk 0:01:29.5]} 26. f6 {[%clk
0:01:08.6]} 26... gxf6 {[%clk 0:01:18.6]} 27. Qh5 {[%clk 0:01:03.4]} 27... fxe5
{[%clk 0:01:09.3]} 28. Qxh7+ {[%clk 0:00:52.9]} 28... Kf8 {[%clk 0:01:08.3]} 29.
Qh8+ {[%clk 0:00:53]} 29... Ke7 {[%clk 0:01:09]} 30. Qxe5+ {[%clk 0:00:52.8]}
30... Be6 {[%clk 0:01:09.7]} 31. Qc5+ {[%clk 0:00:45.5]} 31... Kf6 {[%clk
0:01:00.2]} 32. h4 {[%clk 0:00:32.7]} 32... Qd2 {[%clk 0:00:57]} 33. Bh7 {[%clk
0:00:17.9]} 33... Qe1+ {[%clk 0:00:55]} 0-1

[Event "Early-Titled-Tuesday-Blitz-May-14-2024"]
[Site "Chess.com"]
[Date "2024.05.14"]
[Round "1"]
[White "Shushik"]
[Black "dianamirza"]
[Result "1-0"]
[WhiteElo "2553"]
[BlackElo "1944"]
[TimeControl "180+1"]
[EndTime "8:06:41 PDT"]
[Termination "Shushik won by resignation"]

1. d4 {[%clk 0:03:00.3]} 1... Nf6 {[%clk 0:02:30.4]} 2. c4 {[%clk 0:02:59.4]}
2... c5 {[%clk 0:02:25.8]} 3. d5 {[%clk 0:02:58.2]} 3... b5 {[%clk 0:02:23.4]}
4. Qc2 {[%clk 0:02:53.8]} 4... bxc4 {[%clk 0:02:20]} 5. e4 {[%clk 0:02:53.8]}
5... d6 {[%clk 0:02:19.1]} 6. Bxc4 {[%clk 0:02:52.8]} 6... g6 {[%clk 0:02:18.4]}
7. Nf3 {[%clk 0:02:49.3]} 7... Bg7 {[%clk 0:02:18]} 8. O-O {[%clk 0:02:49.3]}
8... O-O {[%clk 0:02:18]} 9. Nc3 {[%clk 0:02:49.5]} 9... a5 {[%clk 0:02:17.8]}
10. h3 {[%clk 0:02:45.9]} 10... Ba6 {[%clk 0:02:15.2]} 11. Nb5 {[%clk
0:02:37.9]} 11... Bxb5 {[%clk 0:01:56.4]} 12. Bxb5 {[%clk 0:02:37.7]} 12... Nbd7
{[%clk 0:01:55.6]} 13. Bd2 {[%clk 0:02:29.3]} 13... Qb6 {[%clk 0:01:55]} 14. a4
{[%clk 0:02:27.3]} 14... Rfb8 {[%clk 0:01:52.7]} 15. Bc3 {[%clk 0:02:24.3]}
15... c4 {[%clk 0:01:15.2]} 16. Bxc4 {[%clk 0:02:05.8]} 16... Nc5 {[%clk
0:01:13.3]} 17. Rfe1 {[%clk 0:01:59]} 17... Nfxe4 {[%clk 0:01:03.8]} 18. Rxe4
{[%clk 0:01:52.3]} 18... Nxe4 {[%clk 0:00:59.7]} 19. Qxe4 {[%clk 0:01:53.2]}
19... Bxc3 {[%clk 0:00:57.9]} 20. bxc3 {[%clk 0:01:54.1]} 20... Qb2 {[%clk
0:00:55.6]} 21. Re1 {[%clk 0:01:48.8]} 21... Qxc3 {[%clk 0:00:51.3]} 22. Bb5
{[%clk 0:01:48.6]} 22... Ra7 {[%clk 0:00:47.3]} 23. Ng5 {[%clk 0:01:29.8]} 23...
h6 {[%clk 0:00:32.3]} 24. Nf3 {[%clk 0:01:09.4]} 24... Qb4 {[%clk 0:00:27.6]}
25. Nd4 {[%clk 0:01:08.3]} 25... Rc8 {[%clk 0:00:20.7]} 26. Nc6 {[%clk
0:01:05.7]} 26... Qxe4 {[%clk 0:00:18.7]} 27. Rxe4 {[%clk 0:01:06.6]} 27... Rxc6
{[%clk 0:00:05.1]} 28. Bxc6 {[%clk 0:01:03.9]} 28... Kf8 {[%clk 0:00:04.2]} 29.
Re2 {[%clk 0:00:59.6]} 29... Rc7 {[%clk 0:00:02.9]} 30. Rb2 {[%clk 0:00:59.5]}
30... e6 {[%clk 0:00:03.4]} 31. Rb5 {[%clk 0:00:57.5]} 31... Kg7 {[%clk
0:00:03.8]} 32. Rxa5 {[%clk 0:00:57.4]} 32... exd5 {[%clk 0:00:04.4]} 33. Bxd5
{[%clk 0:00:57.9]} 33... Kf6 {[%clk 0:00:04.8]} 34. g3 {[%clk 0:00:56.6]} 34...
Ke7 {[%clk 0:00:04.7]} 35. Kg2 {[%clk 0:00:56.7]} 35... f5 {[%clk 0:00:05.3]}
36. h4 {[%clk 0:00:56.6]} 36... Rc5 {[%clk 0:00:05.4]} 37. Rxc5 {[%clk
0:00:54.7]} 37... dxc5 {[%clk 0:00:06.3]} 38. a5 {[%clk 0:00:52.4]} 38... Kd6
{[%clk 0:00:06.4]} 39. a6 {[%clk 0:00:51.9]} 39... Kc7 {[%clk 0:00:07]} 40. a7
{[%clk 0:00:52.4]} 1-0

[Event "Early-Titled-Tuesday-Blitz-May-14-2024"]
[Site "Chess.com"]
[Date "2024.05.14"]
[Round "1"]
[White "BardArtem"]
[Black "omer1997"]
[Result "0-1"]
[WhiteElo "2754"]
[BlackElo "2491"]
[TimeControl "180+1"]
[EndTime "8:06:42 PDT"]
[Termination "omer1997 won by checkmate"]

1. b3 {[%clk 0:02:54.3]} 1... d5 {[%clk 0:02:57.4]} 2. Bb2 {[%clk 0:02:54.1]}
2... Nf6 {[%clk 0:02:58.3]} 3. g3 {[%clk 0:02:47.9]} 3... g6 {[%clk 0:02:57.2]}
4. Bg2 {[%clk 0:02:48.2]} 4... Bg7 {[%clk 0:02:57.7]} 5. Nf3 {[%clk 0:02:48.8]}
5... O-O {[%clk 0:02:58.2]} 6. O-O {[%clk 0:02:49.5]} 6... c6 {[%clk 0:02:58.2]}
7. c4 {[%clk 0:02:48.7]} 7... Bg4 {[%clk 0:02:57.3]} 8. d4 {[%clk 0:02:37.6]}
8... Ne4 {[%clk 0:02:55.5]} 9. Nc3 {[%clk 0:02:34.9]} 9... Nxc3 {[%clk
0:02:50.4]} 10. Bxc3 {[%clk 0:02:35.8]} 10... Nd7 {[%clk 0:02:50.5]} 11. h3
{[%clk 0:02:31]} 11... Bxf3 {[%clk 0:02:44.5]} 12. Bxf3 {[%clk 0:02:31.5]} 12...
e6 {[%clk 0:02:45.1]} 13. e3 {[%clk 0:02:28.4]} 13... Nf6 {[%clk 0:02:39.5]} 14.
Qe2 {[%clk 0:02:26.7]} 14... Re8 {[%clk 0:02:38.1]} 15. Rfd1 {[%clk 0:02:19.9]}
15... Qb6 {[%clk 0:02:35.6]} 16. b4 {[%clk 0:02:16.9]} 16... Qa6 {[%clk
0:02:32.8]} 17. cxd5 {[%clk 0:02:11.3]} 17... Qxe2 {[%clk 0:02:28.6]} 18. Bxe2
{[%clk 0:02:12.2]} 18... cxd5 {[%clk 0:02:25.4]} 19. Rac1 {[%clk 0:02:10.8]}
19... Rec8 {[%clk 0:02:25.3]} 20. Be1 {[%clk 0:02:05.4]} 20... Bf8 {[%clk
0:02:24.7]} 21. f3 {[%clk 0:01:58.3]} 21... Bd6 {[%clk 0:02:23.6]} 22. Kf2
{[%clk 0:01:58.1]} 22... Kf8 {[%clk 0:02:22.5]} 23. g4 {[%clk 0:01:56]} 23...
Nd7 {[%clk 0:02:21.7]} 24. e4 {[%clk 0:01:46.3]} 24... Nb6 {[%clk 0:02:19.6]}
25. e5 {[%clk 0:01:46.2]} 25... Be7 {[%clk 0:02:15.2]} 26. f4 {[%clk 0:01:46.4]}
26... Rxc1 {[%clk 0:02:07.4]} 27. Rxc1 {[%clk 0:01:46.2]} 27... Rc8 {[%clk
0:02:08.3]} 28. Rxc8+ {[%clk 0:01:46.2]} 28... Nxc8 {[%clk 0:02:09.2]} 29. Ke3
{[%clk 0:01:38.5]} 29... Nb6 {[%clk 0:02:08.9]} 30. f5 {[%clk 0:01:29.3]} 30...
Bg5+ {[%clk 0:02:06.2]} 31. Kf3 {[%clk 0:01:18.7]} 31... Ke7 {[%clk 0:02:02.5]}
32. f6+ {[%clk 0:01:07.9]} 32... Kd8 {[%clk 0:02:00.5]} 33. Bd3 {[%clk
0:00:55.7]} 33... a6 {[%clk 0:01:58.5]} 34. Ke2 {[%clk 0:00:51.9]} 34... Nc4
{[%clk 0:01:52.8]} 35. Bxc4 {[%clk 0:00:39.9]} 35... dxc4 {[%clk 0:01:53.7]} 36.
a4 {[%clk 0:00:38.2]} 36... Kc7 {[%clk 0:01:52.4]} 37. h4 {[%clk 0:00:18.4]}
37... Bc1 {[%clk 0:01:48]} 38. Bd2 {[%clk 0:00:04.7]} 38... Bb2 {[%clk
0:01:36.1]} 39. d5 {[%clk 0:00:04.3]} 39... exd5 {[%clk 0:01:32.4]} 40. e6
{[%clk 0:00:05.2]} 40... Bxf6 {[%clk 0:01:29.4]} 41. exf7 {[%clk 0:00:04.3]}
41... Bg7 {[%clk 0:01:29.1]} 42. Bc3 {[%clk 0:00:02.3]} 42... Bf8 {[%clk
0:01:26.7]} 43. Ke3 {[%clk 0:00:01.8]} 43... Kd7 {[%clk 0:01:20.5]} 44. Kd4
{[%clk 0:00:01.8]} 44... Ke6 {[%clk 0:01:20.9]} 45. b5 {[%clk 0:00:01.3]} 45...
b6 {[%clk 0:01:16.2]} 46. bxa6 {[%clk 0:00:01.3]} 46... Bc5# {[%clk 0:01:16.4]}
0-1